bitfinex/quotes_SOLUSD_20251208
["timestamp","ask_amount","ask_price","bid_price","bid_amount"]
[1765195984376,45.61800997,138.26,138.22,0.66]
[1765195984553,30.77642827,138.26,138.22,4.00444828]
[1765195984753,23.54168697,138.26,138.23,3.34444828]
[1765195985077,23.54168697,138.26,138.23,4.00444828]
[1765195985276,23.54168697,138.26,138.24,0.66]
[1765195985650,7.2322268,138.27,138.24,0.66]
[1765195986857,7.2322268,138.27,138.21,0.26057012]
[1765195987173,3.34444828,138.23,138.21,0.26057012]
[1765195987380,16.308864,138.23,138.21,0.26057012]
[1765195988958,23.54368878,138.23,138.21,0.26057012]
[1765195989883,3.99444828,138.22,138.21,0.26057012]
[1765195990381,12.8043932,138.22,138.21,0.26057012]
[1765195990570,20.7243932,138.22,138.21,0.26057012]
[1765195991069,27.9592362,138.22,138.21,1e-08]
[1765195991266,15.804843,138.22,138.2,0.2]
[1765195991574,19.14929128,138.22,138.2,0.2]
[1765195992284,15.804843,138.22,138.2,0.2]
[1765195992673,19.14929128,138.22,138.2,0.2]
[1765195995783,7.234843,138.22,138.2,0.92]
[1765195995960,7.234843,138.22,138.2,4.26444828]
[1765195996170,7.234843,138.22,138.21,0.72]
[1765195997385,7.234843,138.22,138.21,4.06444828]
[1765195997795,7.234843,138.22,138.2,4.26444828]
[1765195998173,7.234843,138.22,138.2,0.92]
[1765195998791,7.234843,138.22,138.2,4.26444828]
[1765196000390,7.234843,138.22,138.2,0.2]
[1765196001379,7.234843,138.22,138.2,0.86]
[1765196002194,7.234843,138.22,138.2,0.2]
[1765196002383,7.944843,138.22,138.2,0.2]
[1765196002583,7.234843,138.22,138.2,0.2]
[1765196007192,11.28929128,138.22,138.2,0.2]
[1765196008792,10.57929128,138.22,138.2,0.2]
[1765196010783,7.234843,138.22,138.21,0.66]
[1765196011009,7.234843,138.22,138.2,0.86]
[1765196011312,10.57929128,138.22,138.2,0.86]
[1765196011675,10.57929128,138.22,138.2,0.2]
[1765196012282,4.05444828,138.21,138.2,0.2]
[1765196012487,8.80994492,138.2,138.16,8.58]
[1765196012688,12.8643932,138.2,138.16,8.58]
[1765196013303,4.78689597,138.19,138.17,0.66]
[1765196013503,7.23693732,138.18,138.16,8.58]
[1765196013895,7.23693732,138.18,138.17,0.66]
[1765196014885,25.3287178,138.19,138.16,7.92]
[1765196015187,5.50661353,138.18,138.14,3.34444828]
[1765196015395,4.79661353,138.18,138.15,0.66]
[1765196015700,8.14106181,138.18,138.15,0.66]
[1765196016082,4.79661353,138.18,138.15,0.66]
[1765196017116,7.23746109,138.17,138.15,0.66]
[1765196017282,14.1810835,138.17,138.15,0.66]
[1765196017595,9.38446997,138.17,138.15,0.66]
[1765196017781,7.23746109,138.17,138.15,0.66]
[1765196017980,12.0392339,138.17,138.15,0.66]
[1765196018200,32.98989552,138.17,138.13,0.66]
[1765196018414,4.80177281,138.16,138.13,0.66]
[1765196020323,7.23850886,138.15,138.13,0.66]
[1765196020828,7.23746109,138.17,138.14,2.14700888]
[1765196021027,12.04056683,138.17,138.15,2.14700888]
[1765196021327,12.04056683,138.17,138.16,0.66]
[1765196021328,4.80310574,138.17,138.16,0.66]
[1765196021533,7.23642184,138.19,138.16,2.80700888]
[1765196021824,12.04216211,138.19,138.16,2.80700888]
[1765196022025,12.04216211,138.19,138.17,0.66]
[1765196023322,7.23642184,138.19,138.17,0.66]
[1765196024213,25.32604362,138.2,138.17,0.66]
[1765196024589,27.4730525,138.2,138.17,0.66]
[1765196024795,4.80588459,138.19,138.17,0.66]
[1765196025222,25.32604362,138.2,138.17,0.66]
[1765196025732,25.32604362,138.2,138.08,3.77975278]
[1765196025733,16.308864,138.17,138.08,3.77975278]
[1765196026025,41.63490762,138.2,138.15,2.14700888]
[1765196026235,23.54475401,138.2,138.16,10.06700888]
[1765196026528,23.54475401,138.2,138.17,0.66]
[1765196027414,41.63447904,138.2,138.17,0.66]
[1765196027628,23.54475401,138.2,138.17,0.66]
[1765196029405,23.54475401,138.2,138.16,10.06700888]
[1765196029406,16.308864,138.16,138.13,0.66]
[1765196031115,7.23850886,138.15,138.13,0.66]
[1765196031313,23.54705304,138.16,138.13,0.66]
[1765196031907,41.6420154,138.16,138.13,0.66]
[1765196032108,43.78902428,138.16,138.13,0.66]
[1765196032328,43.78902428,138.16,138.1,2.14700888]
[1765196032630,43.78902428,138.16,138.09,7.24152325]
[1765196032631,2.14700888,138.14,138.11,0.71]
[1765196032928,6.9578802,138.14,138.08,2.14700888]
[1765196033136,25.33844927,138.13,138.08,2.85700888]
[1765196033430,25.33844927,138.13,138.04,21.89099495]
[1765196033431,16.308864,138.1,138.04,21.89099495]
[1765196033727,16.308864,138.1,138.08,0.71]
[1765196034131,25.99844927,138.13,138.08,2.85700888]
[1765196034434,28.14545815,138.13,138.09,0.71]
[1765196034729,7.61096377,138.12,138.08,0.71]
[1765196035033,27.49096253,138.1,138.06,0.71]
[1765196035237,2.14700888,138.07,138.02,0.71]
[1765196035439,2.14700888,138.08,138.03,0.71]
[1765196035622,2.14700888,138.08,138.03,2.85700888]
[1765196036134,2.14700888,138.08,138.04,0.71]
[1765196036327,18.45587288,138.09,138.04,10.10114378]
[1765196036528,16.308864,138.09,138.06,2.14700888]
[1765196036915,16.308864,138.09,138.07,0.71]
[1765196037115,16.308864,138.09,138.02,18.1123049]
[1765196037116,7.24174217,138.09,138.02,7.92]
[1765196037333,16.308864,138.08,138.07,0.71]
[1765196037538,16.308864,138.08,138.06,0.71]
[1765196038436,23.55115298,138.08,138.06,0.71]
[1765196039240,23.55115298,138.08,138.05,2.14700888]
[1765196039443,24.21115298,138.08,138.01,7.24560457]
[1765196039739,41.65659909,138.08,138.04,2.14700888]
[1765196040135,41.65659909,138.08,138.05,0.71]
[1765196040941,11.6169538,138.07,138.03,0.71]
[1765196041124,43.80360797,138.08,138.03,0.71]
[1765196041325,43.80360797,138.08,138.03,8.65]
[1765196041731,43.80360797,138.08,138.04,0.71]
[1765196041926,41.65659909,138.08,138.04,2.85700888]
[1765196042530,41.65659909,138.08,138.04,2.14700888]
[1765196042847,23.55115298,138.08,138.05,0.71]
[1765196043644,23.55115298,138.08,138.05,2.85700888]
[1765196043841,23.55115298,138.08,138.05,0.71]
[1765196044225,41.65659909,138.08,138.05,0.71]
[1765196044652,43.80360797,138.08,138.05,0.71]
[1765196046438,7.24322758,138.06,138.05,0.71]
[1765196046946,25.11880892,138.05,138.0,0.66]
[1765196047145,2.14700888,138.03,138.0,0.66]
[1765196047859,2.14700888,138.04,138.0,0.66]
[1765196048330,7.24480185,138.03,138.0,0.66]
[1765196049245,25.35680648,138.03,138.0,0.66]
[1765196049429,27.50381536,138.03,138.0,0.66]
[1765196049942,25.35680648,138.03,138.0,0.66]
[1765196050138,7.24480185,138.03,138.0,2.80700888]
[1765196050550,7.24480185,138.03,138.01,0.66]
[1765196056247,7.24375226,138.05,138.02,2.14700888]
[1765196056650,7.24375226,138.05,138.03,0.66]
[1765196058447,25.35194932,138.06,138.03,0.66]
[1765196059057,25.35194932,138.06,138.03,2.80700888]
[1765196059462,25.35194932,138.06,138.04,0.66]
[1765196059658,7.24322758,138.06,138.04,0.66]
[1765196060458,16.308864,138.05,138.04,0.66]
[1765196061871,7.24240237,138.08,138.04,2.80700888]
[1765196062044,7.24240237,138.08,138.06,2.14700888]
[1765196062244,7.24240237,138.08,138.06,0.72]
[1765196062444,0.7,138.07,138.04,7.94]
[1765196062660,18.80544611,138.08,138.04,8.66]
[1765196063044,18.80544611,138.08,138.04,10.80700888]
[1765196063968,26.04762455,138.08,138.04,10.80700888]
[1765196064549,25.34762455,138.08,138.05,2.86700888]
[1765196065679,18.10544611,138.08,138.05,0.72]
[1765196065863,0.7,138.07,138.04,7.94]
[1765196066372,18.45587288,138.05,138.0,0.72]
[1765196066544,2.14700888,138.04,138.0,0.72]
[1765196066747,19.15587288,138.05,138.0,0.72]
[1765196066948,19.15587288,138.05,138.0,2.86700888]
[1765196067166,19.15587288,138.05,138.01,0.72]
[1765196067566,25.35496957,138.04,138.01,0.72]
[1765196067770,28.20197845,138.04,137.99,7.94]
[1765196067973,28.20197845,138.04,138.0,0.72]
[1765196068379,11.6569538,138.03,137.98,2.14700888]
[1765196068561,25.35496957,138.04,138.0,2.14700888]
[1765196068806,25.35496957,138.04,138.0,2.86700888]
[1765196069090,25.35496957,138.04,138.0,2.14700888]
[1765196069250,26.05496957,138.04,138.0,2.86700888]
[1765196069680,28.20197845,138.04,138.0,0.72]
[1765196070648,0.7,138.03,137.99,10.08700888]
[1765196070977,0.7,138.03,137.99,8.66]
[1765196071161,0.7,138.03,137.99,10.80700888]
[1765196071673,0.7,138.03,138.0,0.72]
[1765196071874,27.50197845,138.04,138.0,0.72]
[1765196072076,28.20197845,138.04,138.0,0.72]
[1765196072966,9.50994492,138.03,137.99,2.14700888]
[1765196073273,26.05496957,138.04,138.0,2.86700888]
[1765196073474,25.35496957,138.04,138.0,2.86700888]
[1765196073658,25.35496957,138.04,138.01,0.72]
[1765196074255,26.05496957,138.04,138.01,0.72]
[1765196074670,28.20197845,138.04,138.01,0.72]
[1765196075265,28.20197845,138.04,137.99,2.86700888]
[1765196075458,28.20197845,138.04,138.0,0.72]
[1765196076176,4.79310257,138.03,138.0,0.72]
[1765196076986,5.49310257,138.03,138.0,0.72]
[1765196077181,16.308864,138.01,137.97,0.72]
[1765196077387,7.24637681,138.0,137.97,0.72]
[1765196077587,7.24637681,138.0,137.98,0.72]
[1765196077784,7.24637681,138.0,137.98,4.0817872]
[1765196078398,7.24637681,138.0,137.99,0.72]
[1765196078888,7.24637681,138.0,137.98,4.0817872]
[1765196079288,7.24637681,138.0,137.98,3.3617872]
[1765196079573,7.24637681,138.0,137.99,0.72]
[1765196080170,7.24637681,138.0,137.97,4.0817872]
[1765196080374,7.24637681,138.0,137.97,3.3617872]
[1765196080582,7.24637681,138.0,137.98,0.72]
[1765196082368,12.04752504,138.0,137.98,0.72]
[1765196083392,7.24637681,138.0,137.98,0.72]
[1765196083886,30.86340232,138.0,137.96,0.72]
[1765196084063,7.24637681,138.0,137.98,0.72]
[1765196084265,23.55492368,138.01,137.98,8.66]
[1765196084876,23.55492368,138.01,137.98,7.94]
[1765196085082,23.55492368,138.01,137.99,0.72]
[1765196087685,16.308864,137.97,137.95,0.72]
[1765196088378,16.308864,137.97,137.95,4.0817872]
[1765196088586,16.308864,137.98,137.95,4.0817872]
[1765196088781,25.36068905,138.01,137.97,3.3617872]
[1765196088984,7.24545623,138.02,138.0,3.3617872]
[1765196089187,7.24545623,138.02,138.01,11.3017872]
[1765196089382,7.24545623,138.02,138.01,12.0217872]
[1765196089790,7.24545623,138.02,138.01,8.66]
[1765196090904,7.24480185,138.03,138.01,12.0217872]
[1765196091277,7.24480185,138.03,138.01,8.66]
[1765196093699,7.24480185,138.03,138.01,12.0217872]
[1765196097312,7.24480185,138.03,138.01,11.3017872]
[1765196097529,7.24480185,138.03,138.02,7.94]
[1765196098516,7.24480185,138.03,138.01,3.3617872]
[1765196098686,7.24480185,138.03,138.02,7.94]
[1765196098886,7.24480185,138.03,138.01,3.3617872]
[1765196099086,7.24480185,138.03,138.02,7.94]
[1765196100908,24.21335784,138.04,138.02,7.94]
[1765196101107,35.57715361,138.07,138.03,4.0217872]
[1765196101293,5.4694237,138.06,138.04,3.3617872]
[1765196101607,5.4694237,138.06,138.04,4.0217872]
[1765196101608,4.8094237,138.06,138.04,4.0217872]
[1765196101789,7.24293796,138.07,138.05,3.3617872]
[1765196101990,12.05221723,138.08,138.05,3.3617872]
[1765196102189,12.05221723,138.08,138.05,4.0217872]
[1765196102391,12.71221723,138.08,138.05,4.0217872]
[1765196102622,7.242327,138.08,138.06,7.94]
[1765196103113,7.242327,138.08,138.06,8.6]
[1765196103893,0.66,138.07,138.01,0.66]
[1765196104095,16.308864,138.05,138.01,11.9617872]
[1765196104297,16.308864,138.05,138.02,3.3617872]
[1765196104507,7.24427702,138.04,138.02,4.0217872]
[1765196104712,7.24427702,138.04,138.03,7.94]
[1765196105215,7.24427702,138.04,138.03,11.9617872]
[1765196105399,7.24165399,138.09,138.03,11.9617872]
[1765196105605,12.05303818,138.09,138.06,3.3617872]
[1765196105815,7.24165399,138.09,138.07,7.94]
[1765196106129,7.24165399,138.09,138.07,11.3017872]
[1765196106297,7.24118381,138.1,138.08,4.0217872]
[1765196106493,16.308864,138.09,138.08,4.0217872]
[1765196106697,16.308864,138.09,138.08,0.66]
[1765196107122,16.308864,138.09,138.07,11.3017872]
[1765196107418,7.24118381,138.1,138.08,0.66]
[1765196107916,7.24118381,138.1,138.08,4.0217872]
[1765196108416,7.24118381,138.1,138.09,0.66]
[1765196109291,7.24118381,138.1,138.08,3.3617872]
[1765196109505,7.24081235,138.11,138.09,0.66]
[1765196109820,18.10083584,138.12,138.09,0.66]
[1765196109821,7.2403322,138.12,138.09,4.0217872]
[1765196110198,7.2403322,138.12,138.1,0.66]
[1765196110400,7.2403322,138.12,138.11,7.94]
[1765196110919,18.09550937,138.16,138.11,11.3017872]
[1765196111120,18.09550937,138.16,138.13,3.3617872]
[1765196111339,16.308864,138.14,138.13,3.3617872]
[1765196111625,16.308864,138.14,138.12,0.66]
[1765196111626,16.308864,138.14,138.12,4.0217872]
[1765196111792,7.23850886,138.15,138.12,4.0217872]
[1765196112621,7.2381978,138.16,138.13,4.0217872]
[1765196112921,7.2381978,138.16,138.14,3.3617872]
[1765196113604,7.2381978,138.16,138.14,4.0217872]
[1765196113805,7.23746109,138.17,138.15,8.6]
[1765196115224,7.2371159,138.18,138.16,3.3617872]
[1765196115403,7.2371159,138.18,138.17,3.3617872]
[1765196115604,23.5459799,138.18,138.17,3.3617872]
[1765196116414,23.5459799,138.18,138.17,4.0217872]
[1765196116716,34.84028645,138.2,138.17,4.0217872]
[1765196116717,7.23661141,138.19,138.17,4.0217872]
[1765196116923,7.23661141,138.19,138.17,3.3617872]
[1765196117127,7.23661141,138.19,138.18,3.3617872]
[1765196117515,7.23609279,138.2,138.18,4.0217872]
[1765196117705,7.23609279,138.2,138.19,3.3617872]
[1765196117898,7.23609279,138.2,138.19,11.3017872]
[1765196118102,7.23609279,138.2,138.19,7.94]
[1765196118610,7.23609279,138.2,138.18,3.3617872]
[1765196118823,25.98581782,138.2,138.19,7.94]
[1765196119206,25.98581782,138.2,138.18,7.94]
[1765196119909,25.32581782,138.2,138.18,7.94]
[1765196120117,25.32581782,138.2,138.18,11.3017872]
[1765196121303,25.32581782,138.2,138.18,11.9917872]
[1765196122418,7.23609279,138.2,138.19,3.3617872]
[1765196124327,7.23609279,138.2,138.18,11.3017872]
[1765196124917,7.23609279,138.2,138.18,11.9917872]
[1765196125629,7.23609279,138.2,138.18,11.3017872]
[1765196125944,7.95609279,138.2,138.18,11.3017872]
[1765196126625,16.308864,138.12,138.09,3.3617872]
[1765196127127,16.308864,138.12,138.09,0.69]
[1765196127437,16.308864,138.12,138.08,3.3617872]
[1765196127438,23.448864,138.12,138.08,3.3617872]
[1765196127630,23.448864,138.12,138.08,4.0517872]
[1765196127825,22.728864,138.12,138.09,0.69]
[1765196128133,7.24060531,138.11,138.08,4.0517872]
[1765196128431,7.24060531,138.11,138.08,3.3617872]
[1765196128629,7.24060531,138.11,138.09,0.69]
[1765196129028,25.34211859,138.11,138.07,11.9917872]
[1765196129411,25.34211859,138.11,138.08,0.69]
[1765196130037,28.70390579,138.11,138.08,0.69]
[1765196130238,7.24060531,138.11,138.08,0.69]
[1765196130929,23.54914285,138.12,138.08,7.93213776]
[1765196131335,23.54914285,138.12,138.09,0.69]
[1765196131513,26.91093005,138.12,138.09,0.69]
[1765196132330,23.54914285,138.12,138.09,0.69]
[1765196134239,16.308864,138.08,138.02,0.69]
[1765196134417,3.3617872,138.03,138.0,0.69]
[1765196134746,3.3617872,138.02,138.0,0.69]
[1765196136824,9.39778435,138.02,138.0,0.69]
[1765196139132,7.24571581,138.02,138.0,0.69]
[1765196141430,7.24571581,138.02,137.99,8.63]
[1765196141841,25.36741721,138.02,137.99,8.63]
[1765196142151,25.36741721,138.02,138.0,0.69]
[1765196142344,7.24571581,138.02,138.0,0.69]
[1765196142545,15.18571581,138.02,138.0,0.69]
[1765196146052,18.46093254,138.03,138.0,0.69]
[1765196146053,23.55384849,138.03,138.0,0.69]
[1765196147451,25.70591703,138.03,138.0,0.19]
[1765196151673,2.87206854,138.02,137.97,0.7]
[1765196151970,2.87206854,138.02,137.97,8.64]
[1765196151971,2.15206854,138.01,137.97,8.64]
[1765196152145,2.87206854,138.01,137.97,8.64]
[1765196153542,2.87206854,138.02,137.98,0.7]
[1765196153744,36.57293717,138.03,137.98,2.85206854]
[1765196154048,55.41609585,138.03,137.98,0.7]
[1765196154250,24.27416801,138.03,137.99,0.7]
[1765196154447,23.55416801,138.03,137.99,0.7]
[1765196154848,24.27416801,138.03,137.99,0.7]
[1765196155850,26.42623655,138.03,137.99,0.7]
[1765196156744,0.72,138.02,137.99,0.7]
[1765196156945,0.72,138.02,137.99,8.64]
[1765196157278,44.53824118,138.03,137.99,8.64]
[1765196157576,16.308864,138.01,138.0,0.7]
[1765196157753,7.24549142,138.02,138.0,0.7]
[1765196165684,7.24480185,138.03,138.0,0.7]
[1765196165867,7.96480185,138.03,138.0,0.7]
[1765196168853,7.24505999,138.03,138.01,2.15206854]
[1765196169077,0.72,138.08,138.02,10.09206854]
[1765196169377,7.24270297,138.07,138.04,2.15206854]
[1765196169582,7.24270297,138.07,138.03,2.87206854]
[1765196169767,7.96270297,138.07,138.03,2.87206854]
[1765196169967,7.96270297,138.07,138.04,0.72]
[1765196170672,12.76667234,138.07,138.04,0.72]
[1765196171754,12.04667234,138.07,138.04,2.87206854]
[1765196171959,16.308864,138.03,137.98,7.94]
[1765196172267,4.80396937,138.02,137.99,0.72]
[1765196172784,0.99999999,137.82,137.78,0.72]
[1765196172958,0.99999999,137.8,137.77,2.15206854]
[1765196173287,0.99999999,137.8,137.78,0.72]
[1765196173662,3.15206853,137.82,137.78,0.72]
[1765196173983,0.99999999,137.8,137.78,0.72]
[1765196174485,3.15206853,137.85,137.79,7.25742071]
[1765196174666,6.61798784,137.85,137.79,7.25742071]
[1765196174980,0.99999999,137.84,137.8,0.72]
[1765196175196,14.42793277,137.83,137.8,0.72]
[1765196175366,5.61798785,137.82,137.79,7.25742071]
[1765196175682,0.99999999,137.81,137.79,7.97742071]
[1765196176867,6.61798784,137.82,137.79,7.97742071]
[1765196177061,0.99999999,137.81,137.79,7.97742071]
[1765196177478,0.99999999,137.81,137.67,0.72]
[1765196177479,0.99999999,137.71,137.67,0.72]
[1765196177707,0.99999999,137.71,137.65,7.26474601]
[1765196178007,0.99999999,137.73,137.67,5.61798785]
[1765196178184,6.61798784,137.73,137.66,0.72]
[1765196178380,0.99999999,137.72,137.67,7.26374664]
[1765196178582,6.61798784,137.73,137.67,12.88173449]
[1765196178775,6.61798784,137.73,137.68,0.72]
[1765196178983,0.99999999,137.72,137.69,7.94]
[1765196179306,0.99999999,137.78,137.72,16.308864]
[1765196179605,0.99999999,137.78,137.77,5.61798785]
[1765196179783,17.30886399,137.8,137.77,13.55798785]
[1765196179979,0.99999999,137.81,137.79,5.61798785]
[1765196180399,16.308864,137.83,137.79,5.61798785]
[1765196180585,0.99999999,137.81,137.78,6.33798785]
[1765196180775,0.99999999,137.79,137.78,6.33798785]
[1765196182205,0.99999999,137.81,137.78,13.5959353]
[1765196182503,8.80994492,137.84,137.8,5.61798785]
[1765196182703,8.80994492,137.84,137.81,5.61798785]
[1765196183207,8.80994492,137.76,137.67,13.5959353]
[1765196183497,8.80994492,137.72,137.67,6.33798785]
[1765196183698,16.308864,137.72,137.69,5.61798785]
[1765196183994,16.308864,137.72,137.68,8.66]
[1765196184196,8.66,137.73,137.7,5.61798785]
[1765196184397,8.80994492,137.74,137.7,5.61798785]
[1765196184599,8.80994492,137.74,137.7,6.33798785]
[1765196184979,38.77158149,137.75,137.71,6.33798785]
[1765196185200,38.77158149,137.75,137.72,5.61798785]
[1765196185399,22.46271749,137.75,137.72,0.72]
[1765196186191,22.46271749,137.75,137.7,0.72]
[1765196186411,22.46271749,137.75,137.7,6.33798785]
[1765196186917,22.46271749,137.75,137.71,5.61798785]
[1765196187093,22.46271749,137.75,137.71,6.33798785]
[1765196187895,22.46271749,137.75,137.7,7.26200624]
[1765196187896,22.46271749,137.75,137.7,5.61798785]
[1765196188302,22.46271749,137.75,137.7,13.60013222]
[1765196188499,22.46271749,137.75,137.7,6.33798785]
[1765196188713,22.46271749,137.75,137.7,14.27798785]
[1765196188930,28.08070534,137.75,137.7,8.66]
[1765196189503,22.46271749,137.75,137.7,14.27798785]
[1765196191013,46.22952566,137.75,137.7,7.94]
[1765196191214,46.22952566,137.75,137.71,0.72]
[1765196191597,46.22952566,137.75,137.7,7.94]
[1765196191813,46.22952566,137.75,137.7,8.66]
[1765196192691,22.46271749,137.75,137.71,0.72]
[1765196192888,46.22952566,137.75,137.69,5.61798785]
[1765196193129,46.22952566,137.75,137.69,13.57798785]
[1765196193415,31.02641442,137.75,137.69,20.84058755]
[1765196193606,47.33527842,137.75,137.7,0.72]
[1765196194000,41.71729057,137.75,137.7,0.72]
[1765196194402,41.71729057,137.75,137.7,7.98213019]
[1765196194921,41.71729057,137.75,137.71,0.72]
[1765196198423,23.56847025,137.75,137.71,0.72]
[1765196198730,23.56847025,137.75,137.71,0.25544661]
[1765196202219,7.25960625,137.75,137.71,0.25544661]
[1765196205631,7.25960625,137.75,137.72,7.96]
[1765196206112,7.25960625,137.75,137.72,8.68]
[1765196207328,7.25960625,137.75,137.72,7.96]
[1765196207329,7.72960625,137.75,137.72,7.96]
[1765196207636,7.25960625,137.75,137.72,8.68]
[1765196207811,7.25960625,137.75,137.72,7.96]
[1765196208214,7.25960625,137.75,137.72,8.68]
[1765196208829,25.11880892,137.77,137.72,8.68]
[1765196208830,7.25868833,137.77,137.74,9.4033083]
[1765196209026,7.25742071,137.79,137.75,9.4033083]
[1765196209226,7.25742071,137.79,137.76,17.3633083]
[1765196209413,7.25689404,137.8,137.76,17.3633083]
[1765196209730,25.41361989,137.81,137.77,10.1233083]
[1765196209935,7.72600065,137.82,137.79,9.4033083]
[1765196210325,7.25600065,137.82,137.79,9.4033083]
[1765196210520,7.72600065,137.82,137.79,9.4033083]
[1765196210724,7.72600065,137.82,137.78,10.1233083]
[1765196211039,7.72600065,137.82,137.78,17.38123366]
[1765196211450,7.72600065,137.82,137.78,10.1233083]
[1765196211828,7.72600065,137.82,137.79,17.3633083]
[1765196212033,7.25600065,137.82,137.79,17.3633083]
[1765196212529,7.25600065,137.82,137.79,18.0733083]
[1765196213335,7.25531451,137.83,137.79,18.0733083]
[1765196213722,7.25531451,137.83,137.8,9.4033083]
[1765196214025,7.25491491,137.84,137.81,9.4033083]
[1765196214337,7.25491491,137.84,137.81,10.1133083]
[1765196215318,12.02836541,137.84,137.81,10.1133083]
[1765196216341,4.7734505,137.83,137.81,10.1133083]
[1765196216646,4.7734505,137.82,137.81,10.1133083]
[1765196217451,4.7734505,137.82,137.81,9.4033083]
[1765196218124,4.7734505,137.82,137.81,10.1133083]
[1765196218822,26.94357527,137.87,137.81,17.36967576]
[1765196219022,4.80287423,137.86,137.84,9.4033083]
[1765196219247,4.80287423,137.85,137.84,9.4033083]
[1765196219625,4.80287423,137.85,137.84,10.1033083]
[1765196220743,4.80287423,137.86,137.84,25.31799806]
[1765196220948,15.96568148,137.91,137.85,10.1033083]
[1765196220949,4.80287423,137.87,137.85,10.1033083]
[1765196221122,4.80223701,137.9,137.85,0.7]
[1765196221451,25.84558431,137.93,137.89,9.4033083]
[1765196221642,4.79902285,137.92,137.9,10.1033083]
[1765196221846,4.79902285,137.92,137.91,10.1033083]
[1765196222144,4.79902285,137.92,137.91,9.4033083]
[1765196222443,52.55149974,137.96,137.91,10.1033083]
[1765196222444,7.24847781,137.96,137.91,10.1033083]
[1765196222634,4.79544594,137.95,137.94,9.4033083]
[1765196222838,12.04392375,137.96,137.94,9.4033083]
[1765196223152,53.80343718,137.99,137.89,16.308864]
[1765196223153,27.62126488,137.99,137.89,16.308864]
[1765196223358,27.62126488,137.99,137.84,61.9]
[1765196223359,0.99999999,137.79,137.76,0.7]
[1765196223561,75.0,137.92,137.74,0.7]
[1765196223562,10.40330829,137.77,137.74,0.7]
[1765196223732,9.4033083,137.76,137.74,0.7]
[1765196224155,0.99999999,137.77,137.74,0.7]
[1765196224533,10.40330829,137.78,137.74,0.7]
[1765196224753,0.99999999,137.78,137.74,0.7]
[1765196225250,0.99999999,137.78,137.74,7.95989795]
[1765196225446,0.99999999,137.78,137.75,0.7]
[1765196225642,8.25801532,137.78,137.76,7.94]
[1765196225841,0.99999999,137.77,137.76,7.94]
[1765196226843,0.99999999,137.78,137.76,8.64]
[1765196227049,0.99999999,137.79,137.77,0.7]
[1765196227755,0.99999999,137.79,137.77,7.95839051]
[1765196228151,0.99999999,137.79,137.78,0.7]
[1765196229055,0.99999999,137.79,137.78,8.64]
[1765196229659,0.99999999,137.81,137.78,15.89780391]
[1765196229861,0.99999999,137.8,137.79,0.7]
[1765196230161,0.99999999,137.81,137.79,0.7]
[1765196230934,0.99999999,137.82,137.79,0.7]
[1765196231140,0.99999999,137.81,137.79,0.7]
[1765196231551,0.99999999,137.82,137.79,0.7]
[1765196231840,0.99999999,137.82,137.79,7.95695207]
[1765196232363,0.99999999,137.82,137.8,0.7]
[1765196232564,0.99999999,137.83,137.81,7.94]
[1765196232771,0.99999999,137.82,137.81,7.94]
[1765196233068,0.99999999,137.82,137.81,8.64]
[1765196233988,0.99999999,137.84,137.81,8.64]
[1765196234145,0.99999999,137.84,137.82,0.7]
[1765196234558,0.99999999,137.83,137.82,0.7]
[1765196235463,0.99999999,137.79,137.76,8.64]
[1765196235664,0.99999999,137.78,137.76,0.7]
[1765196235854,0.99999999,137.78,137.77,0.7]
[1765196236051,0.99999999,137.78,137.77,8.64]
[1765196236266,18.03125574,137.78,137.72,0.7]
[1765196236489,10.40330829,137.75,137.73,8.64]
[1765196236646,0.99999999,137.75,137.73,8.64]
[1765196237469,0.99999999,137.75,137.74,0.7]
[1765196237778,9.4033083,137.76,137.74,0.7]
[1765196237779,10.40330829,137.76,137.74,0.7]
[1765196237982,0.99999999,137.75,137.74,0.7]
[1765196238866,0.99999999,137.75,137.73,7.94]
[1765196239087,17.66287706,137.75,137.71,0.7]
[1765196239378,0.99999999,137.73,137.72,7.94]
[1765196239572,10.40330829,137.73,137.72,7.94]
[1765196240175,10.40330829,137.73,137.69,0.7]